Cogmind - Beta 13 @@@ ROGUE MODE // 2024.04.03 @ 19:18:25 Player: ScarletApple Result: Destroyed by Y-45 Defender with Beam Rifle Performance ------------- Evolutions (2) 1000 Regions Visited (3) 600 Robots Destroyed (39) 195 Value Destroyed (1417) 1417 Prototype IDs (2) 40 Alien Tech Used (0) 0 Bonus (0) 0 TOTAL SCORE: 3252 Bonus ------- None Cogmind --------- Core Integrity 0/550 Matter 294/300 Energy 300/300 System Corruption 0% Temperature Cool (9) Movement Core (500) Ox9 Location -8/Materials Parts ------- > --- POWER (1) -------- (None) > --- PROPULSION (2) --- (None) > --- UTILITY (5) ------ Improved Heat Sink Large Storage Unit Compact Battery Structural Scanner Visual Processing Unit > --- WEAPON (3) ------- Assault Rifle Maul > --- INVENTORY (15) --- Heat Sink Heat Sink Small Storage Unit Advanced Targeting Computer Recoil Stabilizer Shock Rifle Heavy Laser Light Assault Rifle Light Assault Rifle Improved Light Cannon Plasma Cutter Axe Peak State ------------ > --- POWER ------------ Light Nuclear Core > --- PROPULSION ------- Aluminum Leg VTOL Module > --- UTILITY ---------- Improved Heat Sink Large Storage Unit Compact Battery Structural Scanner Visual Processing Unit > --- WEAPON ----------- Shock Rifle Shock Rifle Maul > --- INVENTORY -------- Light Ion Engine Heat Sink Heat Sink Small Storage Unit Advanced Targeting Computer Recoil Stabilizer Shock Rifle Beam Rifle Particle Cannon Assault Rifle Light Assault Rifle Light Assault Rifle Improved Light Cannon Plasma Cutter Axe [Rating: 26] Favorites ----------- Power Light Ion Engine Engine Light Ion Engine Power Core Light Nuclear Core Propulsion Aluminum Leg Treads Light Treads Leg Aluminum Leg Flight Unit VTOL Module Utility Structural Scanner Device Structural Scanner Storage Large Storage Unit Processor Visual Processing Unit Protection Medium Armor Plating Weapon Shock Rifle Energy Gun Shock Rifle Energy Cannon Particle Cannon Ballistic Gun Assault Rifle Ballistic Cannon Improved Light Cannon Launcher Grenade Launcher Impact Weapon Maul Slashing Weapon Mining Claw Build | -11 -10 -9 -8 ------- Run | Yrd Mat Mat Mat Slots Evolved 4 | . . 2 2 Power . | . . . . Propulsion . | . . . . Utility 3 | . . 2 1 Weapon 1 | . . . 1 Parts Attached 61 | 7 11 18 25 Power 9 | 2 . 2 5 Engine 7 | 2 . 2 3 Core 2 | . . . 2 Reactor . | . . . . Propulsion 16 | 2 5 4 5 Treads 4 | . . 4 . Leg 11 | 2 5 . 4 Wheel . | . . . . Hover . | . . . . Flight 1 | . . . 1 Utility 13 | 1 3 6 3 Device 6 | 1 2 2 1 Storage 4 | . . 2 2 Processor 1 | . . 1 . Hackware . | . . . . Protection 2 | . 1 1 . Artifact . | . . . . Weapon 23 | 2 3 6 12 Energy Gun 9 | . 1 1 7 Energy Cannon 2 | . . 1 1 Ballistic Gun 4 | 2 . . 2 Ballistic Cannon 2 | . . 2 . Launcher 1 | . 1 . . Special Weapon . | . . . . Impact Weapon 2 | . . 1 1 Slashing Weapon 3 | . 1 1 1 Piercing Weapon . | . . . . Special Melee Weapon . | . . . . Unidentified Prototypes . | . . . . Parts Lost 20 | . 2 5 13 Power 7 | . . 2 5 Propulsion 4 | . . . 4 Utility 3 | . 1 2 . Weapon 6 | . 1 1 4 Highest Loss Streak 5 | . 1 2 5 To Critical Strikes . | . . . . Average Slot Usage (%) 93 | . 92 94 93 Engine 8 | . 14 10 5 Core 1 | . . . 2 Treads 8 | . . 19 . Leg 8 | . 28 1 9 Flight 1 | . . . 3 Device 16 | . 23 13 18 Storage 12 | . . 10 17 Processor 8 | . . 10 9 Protection 2 | . 1 6 . Energy Gun 7 | . 5 1 14 Ballistic Gun 2 | . 12 . 1 Ballistic Cannon 6 | . . 15 1 Impact Weapon 5 | . . 2 8 Naked Turns . | . . . . Heaviest Build 42 | 10 14 39 42 Greatest Support 40 | 20 20 40 40 Greatest Overweight (x) 11 | . . 4 11 Average Overweight (x) . | . . . 3 Largest Inventory Capacity 15 | 5 5 15 15 Average Capacity 11 | 5 5 11 15 Most Carried 15 | 1 5 15 15 Average Carried 9 | . 3 9 13 Final Capacity 15 | 5 5 15 15 Final Carried 15 | 1 3 15 12 Class Distribution -------------------- 89% | Mutant 10% | Scavenger-Mutant Dominant Class ---------------- Mutant | -10/Materials Mutant | -9/Materials Mutant | -8/Materials Resources | -11 -10 -9 -8 ----------- Run | Yrd Mat Mat Mat Matter Collected 1123 | 265 232 327 299 Remotely . | . . . . Salvage Created 1340 | 31 217 372 720 Parts 68 | 5 14 23 26 Haulers Intercepted . | . . . . Recyclers Shooed . | . . . . Parts Field Recycled . | . . . . Retrieved Matter . | . . . . Parts Self-Destructed . | . . . . Prevented . | . . . . Kills | -11 -10 -9 -8 ------- Run | Yrd Mat Mat Mat Combat Hostiles Destroyed 31 | 1 7 10 13 Melee 5 | . . 4 1 Guns 12 | 1 3 1 7 Cannons 6 | . . 4 2 AOE 4 | . 4 . . Classes Destroyed 10 | 1 3 3 3 Worker 1 | . 1 . . Builder 1 | . . . 1 Tunneler 1 | . 1 . . Operator 1 | . . 1 . Watcher 4 | . 1 1 2 Swarmer 3 | . . 3 . Grunt 21 | 1 7 2 11 Duelist 1 | . . . 1 Sentry 5 | . . 5 . Hunter 1 | . . . 1 Best Kill Streak 7 | 1 7 3 3 Combat Bots Only 4 | 1 4 3 3 Max Kills in Single Turn 3 | 1 3 1 1 Gunslinging . | . . . . Exploded 2 | . 2 . . Melee 1 | . . 1 1 Uniques/NPCs Destroyed . | . . . . Combat | -11 -10 -9 -8 -------- Run | Yrd Mat Mat Mat Hostile Shots Fired 347 | 6 69 115 157 Missed 109 | 2 26 33 48 Damage Taken 3247 | 45 601 885 1716 Core 811 | . 113 135 563 Absorbed by Shields . | . . . . Core Remaining (%) 73 | 100 54 66 . Volleys Fired 102 | 4 27 27 44 Largest 3 | 2 2 2 3 Hottest 174 | 40 76 124 174 Shots Fired 174 | 8 42 45 79 Gun 101 | 8 31 6 56 Cannon 62 | . . 39 23 Launcher 11 | . 11 . . Special . | . . . . Kinetic 83 | 8 17 30 28 Thermal 55 | . 14 15 26 Explosive 11 | . 11 . . Electromagnetic 25 | . . . 25 Robot Hit Streak 10 | 3 7 10 8 Robot Miss Streak 4 | 1 3 3 4 Penetration Max . | . . . . Secondary Targets . | . . . . Shots Hit Robots 108 | 5 12 32 59 Core Hits 53 | 1 17 10 25 Critical Kills 1 | . . 1 . Critical Parts Destroyed 6 | . . 2 4 Critical Strikes 9 | . . 3 6 Burn 2 | . . . 2 Smash 7 | . . 3 4 Melee Attacks 28 | . . 11 17 Impact 22 | . . 8 14 Slashing 6 | . . 3 3 Piercing . | . . . . Sneak Attacks . | . . . . Combat Hostiles . | . . . . Follow-up Attacks . | . . . . Damage Inflicted 2974 | 75 752 696 1451 Guns 929 | 75 169 74 611 Cannons 675 | . . 392 283 Explosions 726 | . 583 . 143 Melee 644 | . . 230 414 Ramming . | . . . . Kinetic 647 | 75 24 269 279 Thermal 834 | . 145 197 492 Explosive 583 | . 583 . . Electromagnetic 266 | . . . 266 Impact 543 | . . 158 385 Slashing 101 | . . 72 29 Piercing . | . . . . Highest Corruption . | . . . . Average Corruption . | . . . . Corruption Purged . | . . . . Corruption Blocked . | . . . . Overload Shots . | . . . . Overflow Damage 230 | . 9 92 129 Projectiles 12 | . . 12 . Explosions 9 | . 9 . . Melee 209 | . . 80 129 Knockbacks 7 | . . 3 4 Impact 3 | . . . 3 Kinetic 4 | . . 3 1 Secondary . | . . . . Self-Inflicted Damage 98 | . 90 . 8 Shots 4 | . 3 . 1 Rammed 2 | . . 2 . Targets Rammed 2 | . . 2 . Kicked . | . . . . Crushed . | . . . . Highest Temperature 138 | . 44 120 138 Average Temperature 30 | . 10 35 33 Received Heat Transfer 1404 | 24 279 165 936 Siege Activations . | . . . . Robots Corrupted . | . . . . Combat Hostiles . | . . . . Parts Fried 5 | . . 1 4 Impact Corruptions 9 | . . 2 7 Robots Melted . | . . . . Combat Hostiles . | . . . . Parts Melted 2 | . . 1 1 Heat Transferred 2002 | . 370 407 1225 Parts Sabotaged . | . . . . Parts Stolen . | . . . . Parts Stripped . | . . . . Power Chain Reactions 2 | . . . 2 Alert | -11 -10 -9 -8 ------- Run | Yrd Mat Mat Mat Peak Influence 284 | 20 284 248 213 Initial 62 | . 13 62 51 Average 75 | 12 125 90 57 Maximum Alert Level 1 | . 1 1 1 Low Security (%) 87 | 100 65 87 91 Level 1 12 | . 34 12 8 Level 2 . | . . . . Level 3 . | . . . . Level 4 . | . . . . Level 5 . | . . . . High Security . | . . . . Max Security . | . . . . Squads Dispatched 6 | . 2 3 1 Investigation . | . . . . Extermination . | . . . . Reinforcement 6 | . 2 3 1 Assault . | . . . . Garrison . | . . . . Intercept . | . . . . Searches Triggered . | . . . . Construction Impeded 1 | . . . 1 Haulers Reinforced . | . . . . Active Scanning Responses . | . . . . Cargo Convoy Interrupts . | . . . . Stealth | -11 -10 -9 -8 --------- Run | Yrd Mat Mat Mat Distress Signals 8 | . 2 1 5 Communications Jammed . | . . . . Distress Signals . | . . . . Times Spotted 60 | 1 15 20 24 Peak Tracking Total 7 | 1 5 4 7 Tactical Retreats 3 | . . 2 1 Traps | -11 -10 -9 -8 ------- Run | Yrd Mat Mat Mat Traps Triggered 1 | . . . 1 Indirectly . | . . . . Trap Hack Attempts . | . . . . Triggered . | . . . . Disarmed . | . . . . Reprogrammed . | . . . . Reused . | . . . . Traps Extracted . | . . . . Installed . | . . . . Triggered . | . . . . Machines | -11 -10 -9 -8 ---------- Run | Yrd Mat Mat Mat Machines Disabled 6 | . 2 . 4 Max in Single Turn 1 | . 1 . 1 Machines Repaired . | . . . . Machines Dismantled . | . . . . Machines Sabotaged . | . . . . Overloaded Fab Kills . | . . . . Hacking | -11 -10 -9 -8 --------- Run | Yrd Mat Mat Mat Machines Accessed 6 | . 2 3 1 Terminals 4 | . 2 2 . Fabricators . | . . . . Repair Stations 1 | . . 1 . Recycling Units . | . . . . Scanalyzers 1 | . . . 1 Garrison Access . | . . . . Total Hacks 21 | . 7 12 2 Successful 13 | . 4 7 2 Failed 8 | . 3 5 . Catastrophic . | . . . . Database Lockouts . | . . . . Manual . | . . . . Terminals 13 | . 7 6 . Fabricators . | . . . . Repair Stations 6 | . . 6 . Recycling Units . | . . . . Scanalyzers 2 | . . . 2 Garrison Access . | . . . . Terminal Hacks 9 | . 4 5 . Record 4 | . 3 1 . Prototype ID Bank 1 | . . 1 . Alert Level 3 | . 1 2 . Investigation Status 1 | . . 1 . Fabricator Hacks . | . . . . Repair Station Hacks 2 | . . 2 . Scan Component 2 | . . 2 . Recycling Unit Hacks . | . . . . Scanalyzer 2 | . . . 2 Insert Component 1 | . . . 1 Analyze 1 | . . . 1 Garrison Access Hacks . | . . . . Unauthorized Hacks . | . . . . Terminals . | . . . . Fabricators . | . . . . Repair Stations . | . . . . Recycling Units . | . . . . Scanalyzers . | . . . . Garrison Access . | . . . . Data Cores Recovered 1 | . . 1 . Used . | . . . . Hacking Detections 4 | . 1 2 1 Full Trace Events . | . . . . Feedback Events . | . . . . Feedback Blocked . | . . . . Robot Schematics Acquired . | . . . . Robots Built . | . . . . Authchips . | . . . . Time . | . . . . Total Robot Build Rating . | . . . . Part Schematics Acquired 1 | . . . 1 Parts Built . | . . . . Authchips . | . . . . Time . | . . . . Total Part Build Rating . | . . . . Parts Repaired . | . . . . Time . | . . . . Parts Recycled . | . . . . Recycled Matter . | . . . . Retrieved Matter . | . . . . Retrieved Components . | . . . . Parts Scanalyzed 1 | . . . 1 Part Schematics Acquired 1 | . . . 1 Parts Damaged . | . . . . Bothacking | -11 -10 -9 -8 ------------ Run | Yrd Mat Mat Mat Used RIF Installer . | . . . . Robots Hacked . | . . . . Non-combat . | . . . . Combat . | . . . . Robot Hacks Applied . | . . . . Relay Couplers Released . | . . . . Fabnet Peak Effective % . | . . . . Robots Rewired . | . . . . Allies Hacked . | . . . . Hacks Repelled . | . . . . Allies | -11 -10 -9 -8 -------- Run | Yrd Mat Mat Mat Total Allies . | . . . . Largest Group . | . . . . Highest-Rated Group . | . . . . Highest-Rated Ally . | . . . . Total Orders . | . . . . Ally Attacks . | . . . . Total Damage . | . . . . Kills . | . . . . Allies Corrupted . | . . . . Allies Melted . | . . . . Intel | -11 -10 -9 -8 ------- Run | Yrd Mat Mat Mat Robot Analysis Total . | . . . . Derelict Logs Recovered . | . . . . Drone Launches . | . . . . Drone Recoveries . | . . . . Exploration | -11 -10 -9 -8 ------------- Run | Yrd Mat Mat Mat Turns Passed 4240 | 266 509 1555 1910 Spaces Moved 1795 | 143 342 822 488 Core 38 | 28 . 1 9 Treads 816 | . . 764 52 Legs 843 | 115 342 57 329 Wheels . | . . . . Hover . | . . . . Flight 98 | . . . 98 Fastest Speed 50 | 50 120 120 160 Average Speed 197 | 106 120 162 337 Slowest Speed 765 | 120 120 250 765 Overloaded Moves . | . . . . Propulsion Burnouts . | . . . . Robots Hopped . | . . . . Cave-ins Triggered . | . . . . Exploration Rate (%) 31 | 10 33 39 43 Regions Visited 3 Branch Regions . Pre-discovered Areas . | . . . . Known Exits Taken . | . . . . Unknown Exits Taken 3 | 1 1 1 . Scrap Searched . | . . . . Spaces Dug . | . . . . Terrain Destroyed 62 | . 53 5 4 Melee . | . . . . Projectile 5 | . . 5 . AOE 57 | . 53 . 4 Terrain Rammed . | . . . . Walls Destroyed . | . . . . Machines Disabled . | . . . . Actions | -11 -10 -9 -8 --------- Run | Yrd Mat Mat Mat Total 2255 | 246 399 969 641 Wait 227 | 92 7 70 58 Move 1792 | 142 341 821 488 Hop . | . . . . Pick Up 19 | 1 4 12 2 Fast Attach 27 | 5 4 10 8 Attach 19 | 1 2 3 13 Detach 9 | . 1 3 5 Swap 15 | 1 5 5 4 Drop 15 | . 8 5 2 Fire 102 | 4 27 27 44 Melee 28 | . . 11 17 Ram . | . . . . Kick . | . . . . Crush 2 | . . 2 . Escape Stasis . | . . . . Rewire . | . . . . Trap . | . . . . Miscellaneous . | . . . . Route ------- -11/Scrapyard -10/Materials -9/Materials -8/Materials History --------- Turn | Location | Event 2 | -11/Scrapyard | Met Revision 17 81 | -11/Scrapyard | Discovered new exit (range 8) 267 | -11/Scrapyard | Entered Materials 306 | -10/Materials | Build established: Mutant 511 | -10/Materials | Discovered new exit (range 15) 776 | -10/Materials | Entered another Materials area 776 | -9/Materials | Evolved 2 slots: Utility x2 1321 | -9/Materials | Discovered new exit (range 8) 2331 | -9/Materials | Entered another Materials area 2331 | -8/Materials | Evolved 2 slots: Utility x1, Weapon x1 3961 | -8/Materials | Core integrity fell below 50% 3993 | -8/Materials | Lost 5 parts (1p2n2w) 4059 | -8/Materials | Core integrity fell below 20% 4241 | -8/Materials | Destroyed by Y-45 Defender with Beam Rifle Last Messages --------------- 04067_ R-06 Scavenger collects Wheel. 04068_ K-01 Serf collects debris. 04069_ R-06 Scavenger collects Welding Torch. 04071_ K-01 Serf collects debris. 04075_ G-47 Trooper destroyed. 04076_ R-06 Scavenger collects Wheel. 04077_ K-01 Serf collects debris. 04079_ R-06 Scavenger collects Terrain Scan Processor. 04080_ K-01 Serf collects debris. 04083_ Beam Rifle destroyed. 04086_ G-47 Trooper destroyed. 04088_ K-01 Serf collects debris. 04092_ Acquired 43 matter. 04093_ K-01 Serf collects debris. 04139_ Acquired Lgt. Deuterium Engine. 04214_ W-25 Informer sends out distress signal. 04230_ W-25 Informer suffers critical hit (Burn). 04234_ Lgt. Deuterium Engine destroyed. 04237_ Carbon-fiber Leg destroyed. [Achievement: First Step to Greatness] Map ----- +----------------------------------------------------+ | ?????????????## ##?????????????????????????????? | | ?????????????## ##?????????????????????????????? | | ?????????????## ##?????????????????????????????? | | ?????????????## ############???????????????????? | | ?????????????## ############???????????????????? | | ?????????????## ## ##???????????????????? | | ?????????????## ## """"" ##???????????????????? | | ?????????????## ## """"" ##???????????????????? | | ?????????????## ## """"" ######???????????????? | | ?????????????## ## ######???????????????? | | ?????????????## ## ### ???????????????? | | ??#############%% ## ##? ##???????????????? | | ??############# %%## "T" ! ##? ##???????????????? | | ??## T ## ## ### ###??????????????? | | ??## """ # ###+######## ###??????????????? | | ??## """ # % ##### ?? ##?????? | | ??## """ + ##### ##?????? | | ??## # ##?????? | | ??## # ########### ####### #####?????? | | + ### ########### ####### ##????????? | | #### ### ##????#####+##????????????????? | | ########+####### ##????## ##??### ## ???????? | | ??####! ! *# ######## ####### ## """????? | | ????## # # ###### ### + """????? | | ????## # # Y #[[[ / #### ???????? | | ????## """ """ # #"" [!@#[[[ ### ##??????????? | | ????## """ """ # #"Y [! g[[ ### ? ##??????????? | | ????## """ """ # #"" [ # ##????????????????? | | ????## # # !# ##????????????????? | | ###### # # # ##????????????????? | | ##########/##### ###+######w###????????????????? | | ????????????????? | | ? ?????????????????? | | ???????????????? | | ########+######+###########?#+### ??????????????? | | ###### T # ########? ## ??????????????? | | # ?????????????????????## ?????????????? | | % S #""" ! ??????????????????????? ##??????????? | | "" #""" # ?????????????????????? ##??????????? | | "" #""" # ?????????????????????? ??????????? | | # | # ???????????????????????????????????? | | ######## ???????????????????????????????????? | | [ #########???????????????????????????????????? | | ##??????????????????????????????????????????? | | #######??????????????????????????????????????????? | | #######??????????????????????????????????????????? | | ##???????????????????????????????????????????????? | | ##???????????????????????????????????????????????? | | ##???????????????????????????????????????????????? | | ##???????????????????????????????????????????????? | +----------------------------------------------------+ Best States ------------- Heat Dissipation 45 Energy Generation 14 Energy Capacity 360 Matter Stores 300 Matter Capacity 300 Sight Range 18 Terrain Scan Density 10 Armor Coverage 225 Evasion (%) 55 Recoil Reduction 2 Item Schematics ----------------- Adv. Targeting Computer | -8/Materials | Scanalyzed Robot Schematics ------------------ None Fabricated ------------ Nothing Alien Tech Used ----------------- None Achievements -------------- Crack Shot First Step to Greatness Uninvited Guest Challenges ------------ None Game ------ Seed ElectronBattleReplicator Manual? 0 Play Time 01:16:35 Cumulative 1.2 hours Start 2024.04.03 @ 17:02:25 End 2024.04.03 @ 19:18:25 Sessions 1 Manual Loads 0 Difficulty Rogue Special Mode None Game No. 1 Rogue 1 Adventurer 0 Explorer 0 Win Type - Total 0 Types 0/0/0/0/0/0/0/0/0 Lore% 0 Gallery% 2 Achievement% 1 Wizard Run 0 Options --------- Layout 1 ASCII 0 Keyboard 0 Movement Arrows Keybinds 0 Fullscreen 2 Font 32/SmallcapsGlow Map View 77x35 Zoom Use 0% Tactical HUD 1 Map Filters NONE Filters NONE Steam 1 RUN: dc0ebf02-90c8-4986-9b02-228e3004891f